bitfinex/quotes_ETHUSD_20260305
["timestamp","ask_amount","ask_price","bid_price","bid_amount"]
[1772738829230,6.34646675,2079.0,2078.4,5.53113462]
[1772738829451,6.34646675,2079.0,2078.5,1.444]
[1772738830139,0.001,2079.0,2078.7,6.73380936]
[1772738830654,0.001,2079.0,2078.8,1.445]
[1772738832243,0.001,2079.0,2078.8,2.64759573]
[1772738832557,0.001,2079.0,2078.8,1.445]
[1772738832960,0.001,2079.0,2078.6,1.20268658]
[1772738833256,0.001,2079.0,2078.9,1.446]
[1772738833458,0.001,2079.0,2078.5,6.73387684]
[1772738833660,0.001,2079.0,2078.4,4.8112661]
[1772738833661,6.34646675,2079.0,2078.6,1.446]
[1772738834568,7.54901033,2079.0,2078.6,1.446]
[1772738834770,7.54901033,2079.0,2078.6,2.64872941]
[1772738835261,7.54901033,2079.0,2078.6,1.446]
[1772738836166,1.20350851,2079.0,2078.6,2.64872753]
[1772738836536,0.001,2079.0,2078.6,2.64872753]
[1772738836739,6.34546675,2079.5,2078.7,5.53113462]
[1772738836968,7.54768528,2079.5,2078.7,5.53113462]
[1772738837937,7.54772854,2079.5,2078.7,5.53113462]
[1772738838141,6.34546675,2079.4,2078.4,10.34247908]
[1772738838359,6.34546675,2079.4,2078.5,1.448]
[1772738838561,7.54774455,2079.4,2078.7,1.20267474]
[1772738838752,7.54773812,2079.4,2078.8,5.53113462]
[1772738839069,7.54775139,2079.4,2078.8,5.53113462]
[1772738839368,0.002,2079.2,2078.8,5.53113462]
[1772738839756,0.002,2079.2,2078.9,1.449]
[1772738840349,6.34746675,2079.2,2078.9,1.449]
[1772738840547,7.54987003,2079.2,2078.9,1.449]
[1772738841252,7.54987003,2079.2,2078.6,1.20269133]
[1772738841446,7.54987003,2079.2,2078.7,1.449]
[1772738841767,7.54987003,2079.2,2078.5,0.001]
[1772738842270,6.34546675,2079.0,2078.5,0.001]
[1772738842640,1.20255904,2078.9,2078.5,0.001]
[1772738842836,7.54802579,2078.9,2078.5,0.001]
[1772738843041,7.54802579,2078.9,2078.5,1.451]
[1772738843768,7.54802579,2078.9,2078.5,0.001]
[1772738843972,7.54802579,2078.9,2078.5,1.451]
[1772738844269,9.22494204,2078.8,2078.5,0.001]
[1772738844467,6.34546675,2078.8,2078.5,0.001]
[1772738844668,7.54814149,2078.7,2078.5,0.001]
[1772738845783,4.81026741,2078.9,2078.5,0.001]
[1772738845784,7.54807244,2078.9,2078.5,0.001]
[1772738846277,6.34546675,2078.7,2078.5,0.001]
[1772738846647,6.34546675,2078.7,2078.3,1.451]
[1772738846842,7.54818374,2078.7,2078.3,1.451]
[1772738847475,1.20271699,2078.7,2078.3,1.451]
[1772738847682,11.15577291,2078.9,2078.3,2.65389606]
[1772738847972,11.15577291,2078.9,2078.3,8.18603068]
[1772738847973,7.54802579,2078.9,2078.3,8.18603068]
[1772738849082,11.11320886,2079.1,2078.4,5.53213462]
[1772738849281,2.8780955,2079.0,2078.4,5.53213462]
[1772738849477,6.30328221,2078.9,2078.3,2.65389606]
[1772738849977,4.8116455,2079.2,2078.4,5.53213462]
[1772738849978,7.50770964,2079.2,2078.4,5.53213462]
[1772738850155,2.87784766,2079.1,2078.4,5.53213462]
[1772738850344,8.94893819,2079.1,2078.4,5.53213462]
[1772738850544,6.07109053,2079.1,2078.4,5.53213462]
[1772738851276,7.27356899,2079.1,2078.5,1.20279047]
[1772738851571,7.27356899,2079.1,2078.5,6.73492509]
[1772738853270,7.27356899,2079.1,2078.5,5.53213462]
[1772738853576,7.27356899,2079.1,2078.3,4.8125351]
[1772738853577,7.27356899,2079.1,2078.6,1.452]
[1772738853872,7.27356899,2079.1,2078.6,1.453]
[1772738854456,7.27356899,2079.1,2078.6,0.001]
[1772738855282,7.27356899,2079.1,2078.6,1.2037326]
[1772738855776,7.27356899,2079.1,2078.6,0.001]
[1772738856385,6.07109053,2078.9,2078.4,0.001]
[1772738856558,6.07109053,2078.7,2078.4,0.001]
[1772738857656,7.27382313,2078.6,2078.4,0.001]
[1772738857861,6.07109053,2078.4,2078.0,0.001]
[1772738858062,7.27382313,2078.6,2078.0,1.20407828]
[1772738858269,7.27382313,2078.6,2078.0,0.001]
[1772738858670,6.07109053,2078.4,2078.0,0.001]
[1772738859695,6.07109053,2078.2,2078.0,0.001]
[1772738860396,6.07109053,2078.2,2077.4,5.53313462]
[1772738860600,1.20290622,2078.3,2077.4,6.73651768]
[1772738860958,7.27396906,2078.4,2077.4,6.73651768]
[1772738861589,6.07109053,2078.6,2077.4,6.73651768]
[1772738861772,7.27384344,2078.6,2077.4,6.73651768]
[1772738862494,7.27384344,2078.6,2077.5,6.98613462]
[1772738862789,7.27384344,2078.6,2077.5,5.53313462]
[1772738863086,7.27384344,2078.6,2077.6,1.453]
[1772738863285,6.07109053,2078.4,2077.6,1.453]
[1772738863476,6.07109053,2078.4,2077.6,6.98613462]
[1772738863663,6.07109053,2078.4,2077.7,5.53313462]
[1772738864104,6.07109053,2078.4,2077.6,2.65629066]
[1772738864105,7.27399675,2078.3,2077.6,2.65629066]
[1772738865468,7.27399675,2078.3,2077.6,1.20329066]
[1772738865688,7.27399675,2078.3,2077.7,1.453]
[1772738866494,7.27399675,2078.3,2077.6,1.453]
[1772738866894,7.27399675,2078.3,2077.2,6.73667785]
[1772738867083,7.27399675,2078.3,2077.3,1.453]
[1772738867471,7.27399675,2078.3,2077.8,0.001]
[1772738869600,6.07109053,2077.0,2075.3,8.51550064]
[1772738869905,6.07109053,2077.0,2074.1,12.18962566]
[1772738869906,6.07109053,2075.5,2074.4,5.53413462]
[1772738870204,1.20458706,2075.4,2074.5,5.53413462]
[1772738870384,7.27566143,2075.5,2074.5,5.53413462]
[1772738870584,7.27566143,2075.5,2074.4,1.449]
[1772738870585,6.07109053,2075.3,2074.4,1.449]
[1772738870789,6.07109053,2075.3,2074.4,2.65416089]
[1772738870989,6.07109053,2075.3,2074.4,1.449]
[1772738871369,6.07109053,2075.3,2074.4,2.65416306]
[1772738871684,6.07109053,2075.3,2074.4,2.65416513]
[1772738871995,4.22141339,2075.9,2074.4,2.65416513]
[1772738871996,6.07109053,2075.9,2074.5,5.53413462]
[1772738872196,7.2754055,2075.9,2074.7,5.53413462]
[1772738872402,7.2754055,2075.9,2074.9,5.53413462]
[1772738872598,6.07109053,2075.9,2074.9,5.53413462]
[1772738873086,7.27538962,2075.9,2074.9,5.53413462]
[1772738873870,6.07109053,2075.9,2074.9,5.53413462]
[1772738874066,7.27541727,2075.9,2074.9,8.19300437]
[1772738875211,6.07109053,2075.9,2074.9,8.19300437]
[1772738875384,7.27539535,2075.9,2075.0,5.53413462]
[1772738875705,1.20418091,2076.1,2075.0,5.53413462]
[1772738875907,7.27527144,2076.1,2075.0,5.53413462]
[1772738876273,7.27527144,2076.1,2075.0,6.73894719]
[1772738876899,7.27527144,2076.1,2075.0,6.73895361]
[1772738877086,7.27527144,2076.1,2075.1,1.457]
[1772738877588,7.27527144,2076.1,2075.1,6.99113462]
[1772738878214,7.27527144,2076.1,2075.2,1.20470316]
[1772738878418,7.27527144,2076.1,2075.2,2.66270316]
[1772738879418,7.27527153,2076.1,2075.2,2.66270316]
[1772738879588,1.20412437,2076.2,2075.3,5.53413462]
[1772738880418,1.20406492,2076.3,2075.4,1.20458706]
[1772738880622,7.44497333,2076.3,2075.4,1.20458706]
[1772738880796,6.24090841,2076.3,2075.4,6.73872168]
[1772738880993,4.81582189,2076.5,2075.4,6.73872168]
[1772738880994,1.20399503,2076.5,2075.4,6.73872168]
[1772738881194,6.24090841,2076.6,2075.4,6.73872168]
[1772738881729,7.4448063,2076.6,2075.4,6.73872168]
[1772738881898,6.24090841,2076.9,2075.6,5.53413462]
[1772738882519,6.24090841,2076.7,2075.7,1.459]
[1772738882836,7.44457329,2077.0,2075.8,5.53413462]
[1772738884489,7.44457329,2077.0,2075.9,1.20429693]
[1772738884689,7.44457329,2077.0,2076.0,5.53413462]
[1772738887926,7.44457329,2077.0,2076.1,1.20418091]
[1772738888233,7.44457329,2077.0,2076.1,6.73831553]
[1772738889227,7.44457329,2077.0,2076.2,1.46]
[1772738890393,7.44457329,2077.0,2076.2,2.66412015]
[1772738893110,7.44457329,2077.0,2076.2,8.19825477]
[1772738893643,1.20346408,2077.4,2076.3,6.58783947]
[1772738893802,7.44427784,2077.5,2076.3,6.58783947]
[1772738894125,2.84900474,2077.4,2076.5,5.53413462]
[1772738894338,6.24090841,2077.5,2076.5,5.53413462]
[1772738894803,1.20334368,2077.6,2076.5,5.53413462]
[1772738894997,1.20329683,2077.7,2076.5,5.53413462]
[1772738895202,11.05380408,2077.8,2076.5,5.53413462]
[1772738895203,2.85196605,2077.6,2076.5,5.53413462]
[1772738895403,7.44414586,2077.8,2076.5,5.53413462]
[1772738895718,2.85202312,2077.7,2076.5,5.53413462]
[1772738895914,2.85202312,2077.6,2076.5,5.53413462]
[1772738896116,7.44414586,2077.8,2076.7,5.53413462]
[1772738896317,2.85349904,2077.7,2076.9,5.53413462]
[1772738896518,2.85349904,2077.6,2076.9,5.53413462]
[1772738896719,7.44414586,2077.8,2076.9,5.53413462]
[1772738896919,2.85377603,2077.7,2076.9,5.53413462]
[1772738897105,7.44414586,2077.8,2076.9,5.53413462]
[1772738897106,2.85377603,2077.6,2076.9,5.53413462]
[1772738897329,7.44414586,2077.8,2076.9,5.53413462]
[1772738897510,9.09569726,2077.7,2076.9,5.53413462]
[1772738897719,0.001,2077.4,2076.9,5.53413462]
[1772738897912,0.001,2077.4,2076.9,4.97982137]
[1772738898223,2.85478885,2077.6,2077.0,6.18248049]
[1772738898421,7.44414125,2077.8,2077.0,6.18248049]
[1772738898621,2.85575412,2077.7,2077.0,6.18248049]
[1772738898949,2.85575412,2077.6,2077.0,6.18248049]
[1772738899148,7.44414125,2077.8,2077.0,6.18248049]
[1772738899443,2.8568236,2077.7,2077.0,6.18248049]
[1772738899649,2.8568236,2077.6,2077.0,6.18248049]
[1772738899950,7.44414125,2077.8,2077.0,6.18248049]
[1772738900149,2.8568236,2077.7,2077.0,6.18248049]
[1772738900318,2.8568236,2077.6,2077.0,6.18248049]
[1772738900512,9.73944843,2078.0,2077.0,6.18248049]
[1772738900714,9.09844145,2077.9,2077.0,6.18248049]
[1772738900915,2.85753304,2077.8,2077.0,6.18248049]
[1772738901113,6.24090841,2077.9,2077.0,6.18248049]
[1772738902129,7.4440488,2077.9,2077.0,6.18248049]
[1772738903008,0.002,2078.1,2077.0,6.18248049]
[1772738903009,1.20506936,2078.1,2077.0,6.18248049]
[1772738903216,7.44597777,2078.1,2077.0,6.18248049]
[1772738904325,7.44594117,2078.1,2077.0,6.18248049]
[1772738905027,0.002,2078.1,2077.0,6.18248049]
[1772738905230,0.002,2078.1,2077.2,4.97882137]
[1772738905557,0.002,2078.1,2077.4,4.97882137]
[1772738906413,0.002,2078.1,2077.5,1.20336943]
[1772738906855,0.002,2078.1,2077.5,6.1821908]
[1772738907217,6.24290841,2078.1,2077.5,1.46]
[1772738907417,2.85923262,2078.0,2077.3,1.46]
[1772738907631,6.35846824,2077.9,2077.3,1.46]
[1772738907827,6.35846824,2077.7,2077.3,1.46]
[1772738908034,6.35846824,2077.7,2077.0,1.46]
[1772738908252,7.5618956,2077.4,2077.0,1.46]
[1772738910339,6.2876429,2077.8,2077.0,8.9054807]
[1772738910490,2.86494487,2077.7,2077.1,6.2418261]
[1772738910778,7.49084904,2077.8,2077.1,6.2418261]
[1772738911170,2.86580158,2077.7,2077.1,6.2418261]
[1772738911351,6.2876429,2078.0,2077.1,6.2418261]
[1772738911676,9.1534667,2077.9,2077.1,6.2418261]
[1772738911973,9.15357013,2077.8,2077.2,0.0011]
[1772738912146,0.001,2077.6,2077.2,0.0011]
[1772738912346,0.001,2077.6,2077.2,1.20464323]
[1772738913652,0.001,2077.6,2077.2,0.0011]
[1772738913854,0.001,2077.6,2077.2,1.4621]
[1772738914853,1.20431151,2077.6,2077.2,1.4621]
[1772738915079,0.001,2077.6,2077.2,2.66563729]
[1772738915288,0.001,2077.6,2077.2,1.4621]
[1772738915479,6.2886429,2077.6,2077.2,2.66563652]
[1772738915665,0.001,2077.6,2077.2,2.66563652]
[1772738916476,0.001,2077.6,2077.2,1.4621]
[1772738916653,6.2886429,2077.6,2076.7,2.664833]
[1772738916855,10.35989286,2077.5,2076.7,8.9066591]
[1772738917170,7.49101233,2077.5,2076.7,8.9066591]
[1772738917679,6.2876429,2077.5,2076.7,8.9066591]
[1772738918780,6.2876429,2077.5,2076.7,2.664833]
[1772738918983,6.2876429,2077.5,2076.8,6.2418261]
[1772738919167,0.001,2077.6,2076.8,6.2418261]
[1772738920378,7.49195716,2077.6,2076.8,6.2418261]
[1772738920584,6.2886429,2077.6,2076.9,7.7038261]
[1772738921153,6.2886429,2077.6,2077.0,1.20365912]
[1772738922377,2.87611418,2077.5,2077.0,1.20365912]
[1772738922582,6.2886429,2077.6,2077.0,1.20365912]
[1772738922794,2.81611418,2077.5,2077.0,7.44548522]
[1772738922957,0.001,2077.6,2077.0,7.44548522]
[1772738924480,6.2886429,2077.6,2077.0,7.44548522]
[1772738925864,7.4919928,2077.6,2077.0,1.20365912]
[1772738926068,7.4919928,2077.6,2076.9,2.66568066]
[1772738926268,6.2886429,2077.4,2076.9,2.66568066]
[1772738926486,6.2886429,2077.4,2077.0,0.0011]
[1772738927297,0.001,2077.4,2077.0,0.0011]
[1772738927587,0.001,2077.6,2077.1,6.2418261]
[1772738930001,0.001,2077.6,2077.2,1.20354323]
[1772738930199,0.001,2077.6,2077.3,1.464]
[1772738932295,0.001,2077.6,2077.4,1.20342736]
[1772738939375,6.2886429,2077.6,2077.3,2.66744323]
[1772738939887,6.2886429,2077.6,2077.3,2.66854323]
[1772738940406,0.001,2077.4,2077.3,2.66854323]
[1772738940605,6.2886429,2077.6,2077.3,2.66854323]
[1772738941007,6.23937822,2077.6,2077.3,2.66854323]
[1772738941202,5.90644415,2077.9,2077.3,2.66854323]
[1772738941417,2.88333482,2077.8,2077.3,8.77227074]
[1772738941719,5.90844415,2078.1,2077.4,6.10372751]
[1772738941879,2.88309899,2078.0,2077.4,6.10372751]
[1772738942078,5.90844415,2078.1,2077.4,6.10372751]
[1772738942321,2.88241129,2078.0,2077.4,6.10372751]
[1772738942531,5.90844415,2078.1,2077.4,6.10372751]
[1772738942808,2.88241129,2078.0,2077.4,6.10372751]
[1772738943027,4.8136509,2078.3,2077.4,6.10372751]
[1772738943028,5.90844415,2078.3,2077.4,6.10372751]
[1772738943231,1.69285238,2078.6,2077.7,6.10372751]
[1772738943391,2.89559122,2078.6,2077.9,6.10372751]
[1772738943725,2.89546927,2078.8,2077.9,6.10372751]
[1772738943880,1.69285238,2078.7,2077.9,6.10372751]
[1772738946090,2.89558498,2078.6,2077.9,7.30681273]
[1772738950390,1.2027326,2078.6,2077.9,7.30681273]
[1772738950588,1.69285238,2078.5,2077.9,7.30681273]
[1772738951023,2.89565201,2078.5,2077.9,7.30681273]
[1772738951398,1.69285238,2078.5,2077.9,7.30681273]
[1772738951717,1.20278121,2078.6,2077.9,7.30681273]
[1772738951912,2.89563359,2078.6,2077.9,7.30681273]
[1772738953013,2.89563359,2078.6,2078.1,0.001]
[1772738953211,0.002,2078.5,2078.1,6.10472751]
[1772738953521,0.002,2078.5,2078.2,1.475]
[1772738957924,1.69485238,2078.5,2078.2,1.475]
[1772738958128,1.69485238,2078.5,2078.1,0.001]
[1772738958520,1.69485238,2078.5,2077.6,1.20426644]
[1772738958521,0.21785238,2078.3,2077.6,1.478]
[1772738958698,0.21785238,2078.1,2077.6,0.001]
[1772738958897,0.21785238,2077.9,2077.6,0.001]
[1772738959400,0.21785238,2077.7,2077.6,0.001]
[1772738960412,1.42110597,2077.7,2077.6,0.001]
[1772738964546,1.20324372,2077.8,2077.6,0.003]
[1772738965536,1.20307988,2078.0,2077.6,0.003]
[1772738966039,1.42093226,2078.0,2077.6,0.003]
[1772738966438,0.21785238,2077.9,2077.3,0.0011]
[1772738966731,1.20307988,2078.0,2077.3,0.0011]
[1772738966732,0.21485238,2077.7,2077.3,0.0011]
[1772738967037,0.21485238,2077.5,2077.3,0.0011]
[1772738967535,1.41827974,2077.4,2077.3,0.0011]
[1772738967913,1.20342736,2077.4,2077.3,0.0011]
[1772738969632,4.81355686,2077.5,2077.3,0.0011]
[1772738970011,0.21485238,2077.4,2077.0,0.0011]
[1772738971436,1.20336943,2077.5,2077.0,6.4712692]
[1772738971636,1.20336943,2077.5,2077.0,7.67491691]
[1772738971836,1.41820611,2077.6,2077.0,7.67491691]
[1772738973218,1.20335373,2077.6,2077.0,7.67491691]
[1772738973419,1.20526494,2077.7,2077.0,7.67491691]
[1772738974440,1.42011732,2077.7,2077.0,7.67491691]
[1772738974636,1.20526494,2077.7,2077.0,7.67491691]
[1772738975137,1.41999256,2077.9,2077.1,6.4701692]
[1772738975344,1.20514018,2077.9,2077.3,6.4701692]
[1772738975534,1.20514391,2077.9,2077.3,6.4701692]
[1772738975837,0.002,2077.9,2077.5,6.4701692]
[1772738979639,0.21685238,2077.9,2077.2,2.68354018]
[1772738979949,0.21685238,2077.9,2077.3,6.4701692]
[1772738980716,1.20319568,2077.8,2077.3,6.4701692]
[1772738981252,0.001,2077.7,2077.3,6.4701692]
[1772738982521,0.001,2077.7,2077.3,7.67365277]
[1772738985863,0.002,2077.9,2077.3,7.67365277]
[1772738985864,0.002,2077.9,2077.4,6.4701692]
[1772738986022,0.21785238,2077.9,2077.4,6.4701692]
[1772738986855,1.20319568,2077.8,2077.4,6.4701692]
[1772738987820,1.20319568,2077.8,2077.4,7.67359244]
[1772738988320,1.20319568,2077.8,2077.4,6.4701692]
[1772738989161,0.21785238,2077.9,2077.4,6.4701692]
[1772738991662,1.20517416,2077.9,2077.4,7.67354864]
[1772738992336,1.20497083,2078.2,2077.5,6.4701692]
[1772738992534,1.20496687,2078.2,2077.7,6.4701692]
[1772738992940,0.002,2078.2,2077.7,6.4701692]
[1772738993152,1.20496842,2078.2,2077.7,6.4701692]
[1772738993547,0.002,2078.2,2077.9,6.4701692]
[1772738993842,1.20479128,2078.5,2078.0,7.9541692]
[1772738994465,1.20472187,2078.7,2078.1,6.4701692]
[1772738995660,1.42257425,2078.7,2078.1,6.4701692]
[1772738995962,0.21785238,2078.6,2078.1,6.4701692]
[1772738996178,0.21785238,2078.6,2077.9,7.9551692]
[1772738996360,0.21785238,2078.6,2077.9,1.485]
[1772738996535,0.21785238,2078.4,2077.9,1.485]
[1772738997369,0.21785238,2078.4,2077.7,6.4701692]
[1772738997566,0.21785238,2078.4,2077.6,0.0011]
[1772738997567,0.21785238,2078.2,2077.6,0.0011]
[1772738999753,1.20302199,2078.1,2077.6,0.0011]
[1772738999971,0.21785238,2078.0,2077.6,0.0011]
[1772739001776,1.20313778,2077.9,2077.6,0.0011]
[1772739002463,1.20313778,2077.9,2077.6,6.39217381]
[1772739003269,1.42099016,2077.9,2077.6,0.0011]
[1772739003474,0.21785238,2077.8,2077.4,0.0011]
[1772739003875,1.20325359,2077.7,2077.4,0.0011]
[1772739004690,0.21675238,2077.6,2077.4,0.0011]
[1772739005187,1.20325359,2077.7,2077.4,0.0011]
[1772739005561,1.20325359,2077.7,2077.4,6.39272381]
[1772739005987,4.81301439,2077.8,2077.6,0.0011]
[1772739005988,0.21675238,2077.8,2077.6,0.0011]
[1772739006284,2.87868217,2077.7,2077.6,0.0011]
[1772739006489,2.87868217,2077.7,2077.2,0.0011]
[1772739006490,0.21675238,2077.6,2077.2,0.0011]
[1772739006686,0.00219999,2077.0,2076.7,6.39272381]
[1772739006908,0.21895237,2077.0,2076.7,0.0011]
[1772739007071,3.09532243,2076.9,2076.7,0.0011]
[1772739007399,3.09532243,2076.9,2076.0,2.68723299]
[1772739007400,0.21675238,2076.7,2076.1,6.39162381]
[1772739007596,0.21895237,2077.0,2076.1,6.39382381]
[1772739007911,0.21895237,2077.0,2076.3,6.39162381]
[1772739007912,0.00219999,2077.0,2076.3,6.39162381]
[1772739008264,0.00219999,2077.0,2076.4,0.0022]
[1772739008563,0.00219999,2077.0,2076.5,6.39162381]
[1772739009462,0.00219999,2077.0,2076.6,0.0022]
[1772739009663,0.00219999,2077.0,2076.6,6.39382381]
[1772739009883,0.00219999,2077.0,2076.7,6.39162381]
[1772739010107,0.21675238,2077.4,2076.4,6.39162381]
[1772739010275,0.21675238,2077.2,2076.4,6.39162381]
[1772739012265,1.42035355,2077.1,2076.4,6.39162381]
[1772739012462,0.21675238,2077.0,2076.0,7.59584308]
[1772739012998,0.21675238,2077.0,2076.0,6.39162381]
[1772739013161,1.20360117,2077.1,2076.0,6.39162381]
[1772739014494,5.03115707,2077.2,2076.2,6.39162381]
[1772739014678,0.21675238,2077.1,2076.2,6.39162381]
[1772739016493,1.20365912,2077.0,2076.2,7.59569559]
[1772739016697,1.20348529,2077.3,2076.2,7.59569559]
[1772739016859,1.42019331,2077.4,2076.2,7.59569559]
[1772739017064,4.81326251,2077.6,2076.3,0.44518023]
[1772739017302,1.2042884,2077.7,2076.4,6.39162381]
[1772739017501,1.2042884,2077.7,2076.6,6.39162381]
[1772739018162,0.001,2077.5,2076.6,6.39162381]
[1772739018365,0.001,2077.5,2076.6,7.59545829]
[1772739018593,0.001,2077.5,2076.6,6.39162381]
[1772739018779,0.21775238,2077.5,2076.6,6.39162381]
[1772739019770,0.21675238,2077.3,2076.4,0.0011]
[1772739020472,1.20354323,2077.2,2076.4,0.0011]
[1772739020985,1.42029561,2077.2,2076.4,0.0011]
[1772739021295,1.42029561,2077.2,2076.4,6.39272381]
[1772739022601,0.21675238,2077.1,2076.4,6.39272381]
[1772739024100,3.08025049,2077.0,2076.1,6.39272381]
[1772739024303,3.07978132,2076.9,2076.1,6.39272381]
[1772739024481,3.33619561,2077.2,2076.1,7.59689422]
[1772739024686,2.86353596,2077.1,2076.1,7.59689422]
[1772739026570,1.20365912,2077.0,2076.1,7.59689422]
[1772739027504,1.4193115,2077.0,2076.1,6.39272381]
[1772739027801,3.08413584,2076.9,2076.1,6.39272381]
[1772739028003,0.21565238,2076.8,2076.1,6.39272381]
[1772739028699,1.203833,2076.7,2076.1,6.39272381]
[1772739029103,3.08567689,2076.6,2076.1,0.0011]
[1772739029398,1.203833,2076.7,2076.1,0.0011]
[1772739030431,1.203833,2076.7,2076.3,0.0011]
[1772739030607,2.8699838,2076.6,2076.3,0.0011]
[1772739031101,1.20394895,2076.5,2076.3,0.0011]
[1772739032479,9.86611302,2077.1,2076.3,6.39327381]
[1772739032679,7.68678317,2077.0,2076.3,6.39327381]
[1772739032907,2.87168302,2076.9,2076.3,6.39327381]
[1772739033109,1.20377503,2076.8,2076.3,7.5973362]
[1772739033517,1.20377503,2076.8,2076.3,6.39327381]
[1772739034006,1.41942741,2076.8,2076.3,0.0011]
[1772739034176,3.09101284,2076.7,2076.3,0.0011]
[1772739034379,2.87567895,2076.6,2076.3,0.0011]
[1772739035209,1.20394895,2076.5,2076.3,0.0011]
[1772739035683,1.20394895,2076.5,2076.3,6.39327381]
[1772739035880,1.20377503,2076.8,2076.3,6.39327381]
[1772739036183,2.87631887,2076.7,2076.3,6.39327381]
[1772739036606,2.87631887,2076.6,2076.3,6.39327381]
[1772739036911,1.20377503,2076.8,2076.3,6.39327381]
[1772739037079,2.87784562,2076.7,2076.3,6.39327381]
[1772739037281,1.20394895,2076.5,2076.3,0.0011]
[1772739037980,1.20377503,2076.8,2076.3,6.39327381]
[1772739038216,2.87772194,2076.7,2076.3,6.39327381]
[1772739039102,2.87772194,2076.6,2075.7,0.12553965]
[1772739039413,7.25228153,2076.4,2075.6,6.01135729]
[1772739040230,7.25228153,2076.4,2075.6,7.21582429]
[1772739040515,7.25228153,2076.4,2075.6,6.01135729]
[1772739040718,7.25228153,2076.4,2075.6,7.21581962]
[1772739041089,1.20400693,2076.4,2075.6,7.21581962]
[1772739041384,4.81602774,2076.5,2075.6,7.08741387]
[1772739041603,2.87732255,2076.4,2075.6,7.08741387]
[1772739042028,2.87732255,2076.4,2075.6,5.88295154]
[1772739042233,8.92559715,2076.4,2075.6,5.88295154]
[1772739042535,6.0482746,2076.4,2075.6,7.08741506]
[1772739042728,6.0482746,2076.4,2075.6,7.08739036]
[1772739043815,1.20406492,2076.3,2075.6,7.08739036]
[1772739044333,1.20406492,2076.3,2075.9,6.01135729]
[1772739044906,1.20406492,2076.3,2075.8,0.0011]
[1772739044907,6.0482746,2076.3,2075.8,0.0011]
[1772739045101,1.20403905,2076.4,2075.8,6.01245729]
[1772739045317,1.2049736,2076.5,2075.8,6.01245729]
[1772739045520,2.87654352,2076.4,2075.8,6.01245729]
[1772739045740,1.2049736,2076.5,2075.8,6.01245729]
[1772739045947,2.87665434,2076.4,2075.8,6.01245729]
[1772739046106,6.0482746,2076.0,2075.5,0.0011]
[1772739046306,2.87665434,2075.9,2075.5,0.0011]
[1772739046530,2.30239595,2076.3,2075.5,6.01245729]
[1772739046733,2.87502824,2076.2,2075.5,6.01245729]
[1772739047018,6.0482746,2076.4,2075.5,0.0011]
[1772739047019,6.0482746,2076.0,2075.5,0.0011]
[1772739047418,2.87577401,2075.9,2075.5,0.0011]
[1772739047942,1.20429693,2075.9,2075.5,0.0011]
[1772739049538,2.87693578,2075.8,2075.5,0.0011]
[1772739050139,1.20441296,2075.7,2075.5,0.0011]
[1772739050639,2.87632674,2075.6,2075.3,0.0011]
[1772739050840,7.25268756,2075.7,2075.3,0.0011]
[1772739052421,2.87376357,2075.6,2075.3,0.0011]
[1772739053324,7.25268756,2075.7,2075.3,0.0011]
[1772739053726,1.20441296,2075.7,2075.3,0.0011]
[1772739054114,1.20441296,2075.7,2075.0,7.21617312]
[1772739054310,1.20441296,2075.7,2075.0,6.01135729]
[1772739054311,7.25268756,2075.7,2075.0,6.01135729]
[1772739055342,6.0482746,2075.5,2074.8,6.01135729]
[1772739056419,1.20458706,2075.4,2074.8,6.01135729]
[1772739057539,1.20458706,2075.4,2075.3,0.0011]
[1772739057836,7.25286166,2075.4,2075.3,0.0011]
[1772739059241,1.20458706,2075.4,2075.3,0.0011]
[1772739059640,7.25286166,2075.4,2075.0,0.0011]
[1772739060147,1.20458706,2075.4,2075.0,0.0011]
[1772739060932,4.81834827,2075.5,2075.0,0.0011]
[1772739061331,4.8179878,2075.6,2075.0,6.17726919]
[1772739061654,1.20452902,2075.5,2075.0,6.17726919]
[1772739062655,1.20542088,2075.7,2075.0,6.17726919]
[1772739062824,0.001,2075.7,2075.2,6.17616919]
[1772739063425,6.21079785,2075.7,2075.0,6.17726919]
[1772739063662,6.21079785,2075.7,2075.0,7.38208251]
[1772739065056,1.20447099,2075.6,2075.0,7.38208251]
[1772739065237,1.20546146,2075.7,2075.0,7.38208251]
[1772739067062,0.001,2075.7,2075.0,6.17726919]
[1772739067260,0.001,2075.7,2075.0,7.3820854]
[1772739067429,6.21079785,2075.7,2075.0,7.3820854]
[1772739068747,6.21079785,2075.7,2075.0,6.17726919]
[1772739069070,1.20447099,2075.6,2075.0,6.17726919]
[1772739069426,7.41426884,2075.6,2075.2,0.0011]
[1772739069658,7.41426884,2075.6,2075.0,0.0011]
[1772739069659,6.20979785,2075.2,2075.0,0.0011]
[1772739069860,11.38838839,2075.1,2075.0,0.0011]
[1772739070261,9.08613629,2075.1,2075.0,0.0011]
[1772739070834,11.63464224,2075.1,2075.0,0.0011]
[1772739071145,10.2908975,2075.1,2075.0,0.0011]
[1772739072064,6.20979785,2075.0,2074.7,0.0011]
[1772739072279,6.20979785,2074.8,2074.1,0.8979876]
[1772739072445,6.20979785,2074.6,2074.2,96.0]
[1772739073056,1.20510966,2074.5,2074.2,96.0]
[1772739073437,7.41467519,2074.9,2074.2,96.0]
[1772739073631,2.87138409,2074.8,2074.2,97.20527804]
[1772739074445,2.87138409,2074.8,2074.2,96.0]
[1772739074762,9.08118194,2074.8,2074.2,96.0]
[1772739074962,2.87138409,2074.7,2074.2,96.0]
[1772739075163,4.0764196,2074.7,2074.2,96.0]
[1772739075370,1.20503551,2074.7,2074.2,96.0]
[1772739075670,1.20503551,2074.7,2074.2,97.20526337]
[1772739075859,1.20503551,2074.7,2074.2,97.20528187]
[1772739076447,1.20503551,2074.7,2074.2,96.0]
[1772739076766,7.41475574,2074.8,2074.2,97.20527312]
[1772739076937,7.41455906,2075.1,2074.3,7.58816919]
[1772739077138,1.20487734,2074.9,2074.3,7.58816919]
[1772739077873,1.20487734,2074.9,2074.4,1.421]
[1772739078972,1.20470316,2075.2,2074.6,6.17616919]
[1772739079181,1.20458706,2075.4,2074.7,7.38116268]
[1772739079380,2.87088404,2075.3,2074.7,102.17616919]
[1772739079580,2.87088404,2075.3,2074.7,54.1761692]
[1772739079783,2.87088404,2075.3,2074.8,47.99999999]
[1772739079784,9.08068189,2075.3,2074.8,47.99999999]
[1772739080079,6.20979785,2075.3,2074.9,1.442]
[1772739081652,1.20470316,2075.2,2074.9,1.4431]
[1772739081848,0.001,2075.1,2074.9,1.4431]
[1772739082162,1.20458706,2075.4,2075.0,96.0]
[1772739082354,1.20556906,2075.5,2075.0,102.17616919]